Workbook

Sheet Параметры кредита
B2: Ипотечный калькулятор
E5: ФИО заемщика | H5: Петров П.П.
E7: Тип продукта | H7: Переезд-комфорт
E9: Договор № | H9: 21/514-65/754св
E11: Дата договора | H11: 2013-04-25
E15: Расчетные параметры
E17: Сумма кредита | K17: 2000000 | M17: , руб.
E19: Стоимость предмета ипотеки | K19: 3000000 | M19: , руб.
E21: Дата выдачи кредита (займа) | K21: 2013-04-25
E23: Срок кредита на момент выдачи | K23: 12 | M23: , месяцев
E25: Регион | K25: Алтайский край
E27: Наличие личного страхования
E29: Новое жилье - новостройка
E31: Оформление послед. ипотеки
E33: Стандарт выдачи | K33: Стандарт 1-31 (коп)
E35: Ставка по кредиту | K35: 0.125
E37: К/З на момент выдачи | K37: 0.67
E41: Расчет ПСК
D43: Единоразовые платежи заемщика при преоставлении кредита (займа), в том числе в пользу третьих лиц, в рублях | K43: 0
D45: Ежегодные платежи в процессе обслуживания кредита (займа), в том числе в пользу третьих лиц, в рублях | K45: 0
D47: Единоразовые платежи заемщика (комиссии) при предоставлении кредита (займа), в том числе в пользу третьих лиц, в % от ОД | K47: 0
D49: Ежегодные платежи в процессе обслуживания кредита (займа), в том числе в пользу третьих лиц, в % от ОД | K49: 0
D51: Страховой платеж при предоставлении кредита (займа), в % от ОД | K51: 0.005
D53: Страховые платежи в процессе обслуживания кредита (займа), в % от ОД | K53: 0
E58: Расчетное значение ТЗ/З | K58: 0.7443

Sheet Настройка калькулятора (hidden)
C3: Константы
C4: 300000 | D4: Минимальный размер кредита | H4: Процентные ставки
C5: 1 | D5: Максимальное значение ТЗ/З | H5: К/З Срок | I5: До 50% (включительно) | J5: От 51 до 70% (включительно)
C6: 0.8 | D6: Значение ТЗ/З при котором необходимо ипотечное страхование
C7: 0.3 | D7: Минимальное значение К/З | H7: До 12 мес.(включительно) | I7: 0.12 | J7: 0.125
C8: 0.7 | D8: Максимальное значение К/З | H8: От 13 до 24 мес. | I8: 0.13 | J8: 0.14
C9: 6 | D9: Минимальный срок кредита на момент выдачи (мес.)
C10: 1.5 | D10: Коэффициент превышения суммы кредита, установленной для региона
C11: 24 | D11: Максимальный срок кредита на момент выдачи (мес.)
C15: Доп. Надбавки
C16: Надбавка | D16: Причина надбавки
C17: 0.007 | D17: Надбавка за отсутствие личного страхования
C18: 0.01 | D18: Наличие обременения
C22: Типы продуктов
C23: Переезд-эконом
C24: Переезд-комфорт
C25: Переезд-межгород

Sheet Расчет графика платежей
B1: ФИО заемщика | F1: =FIO -> Петров П.П. | L1: Плановые платежи, производимые заемщиком за весь срок кредитования
B2: Тип продукта | F2: =ProductType -> Переезд-комфорт
B3: Договор № | F3: =AgreementNo -> 21/514-65/754св | J3: ПСК | L3: =F5 -> 2000000 | N3: погашение кредита
B4: Дата договора | F4: =AgreementDate -> 2013-04-25 | L4: =SUM(N14:N37)+SUM(A14:A37) -> 232876.75 | N4: проценты по кредиту
B5: Сумма кредита (займа) | F5: =CredSumm -> 2000000 | J5: =XIRR(M13:M37,P13:P37,2) -> 0.1321890913 | L5: =Payment1+Proc1*CredSumm+Proc3*CredSumm*1.1 -> 11000 | N5: платежи при предоставлении кредита
B6: Стандарт выдачи | F6: =GiveStandart -> Стандарт 1-31 (коп)
B7: Дата выдачи кредита | F7: =GiveDate -> 2013-04-25 | L7: =M26 -> 0 | N7: платежи в процессе обслуживания кредита
B8: Процентная ставка по кредиту | F8: =CONCATENATE(InterestPercent*100,"% годовых") -> 12,5% годовых | L8: =L3+L4+L5+L7 -> 2243876.75 | N8: всего платежей по кредиту
B9: Срок кредита (займа) | F9: =CONCATENATE(Credit_Period," мес.") -> 12 мес.
B11: № пп | C11: Последняя дата процентного периода | D11: Фактическая дата платежа | E11: Сумма фактического платежа, руб. | F11: Задолженность на начало процентного периода | H11: Кол-во дней начисления % | I11: Ставка, % | J11: Проценты начисленные на остаток долга | K11: Задолженность на конец процентного периода | N11: Платеж в счет погашения задолженности по процентам, руб. | O11: Платеж в счет погашения ОД, руб. | Q11: Возврат
F12: Остаток основного долга по кредиту (займу) | G12: Задолженность по неоплаченным процентам, руб | K12: Остаток основного долга по кредиту (займу) | L12: Задолженность по неоплаченным процентам, руб
B13: [1] | C13: [2] | D13: [3] | E13: [4] | F13: [5] | G13: [6] | H13: [7] | I13: [8] | J13: [9] | K13: [10] | L13: [11] | M13: -2000000 | N13: [12] | O13: [13] | P13: 41389 | Q13: [14]
A14: =IF(B14=Credit_Period,L14,0) -> 0 | B14: 1 | C14: 2013-04-30 | F14: 2000000 | G14: 0 | H14: =IF(E14>=F5+ROUND((DAY(IF(D14="",C14,D14))-DAY(F7))*F5*I14/(DATE(YEAR(C14)+1,1,1)-DATE(YEAR(C14),1,1)),2),DAY(IF(D14="",C14,D14))-DAY(F7),DAY(C14)-DAY(F7)) -> 5 | I14: 0.125 | J14: =IF(E14>=F5+ROUND((DAY(IF(D14="",C14,D14))-DAY(F7))*F5*I14/(DATE(YEAR(C14)+1,1,1)-DATE(YEAR(C14),1,1)),2),ROUND((DAY(IF(D14="",C14,D14))-DAY(F7))*F5*I14/(DATE(YEAR(C14)+1,1,1)-DATE(YEAR(C14),1,1)),2),ROUND((F5)*(DAY(C14)-DAY(F7))*I14/(DATE(YEAR(C14)+1,1,1)-DATE(YEAR(C14),1,1)),2)) -> 3424.66 | K14: =(F5-O14) -> 2000000 | L14: =J14-N14 -> 3424.66 | M14: =Payment1+Proc1*CredSumm+Proc3*CredSumm*1.1+IF(B14=Credit_Period,L14+K14,0)+N14+O14 -> 11000 | N14: =IF(E14>=J14,J14,E14) -> 0 | O14: =IF(IF(E14>=N14,E14-N14,0)>F5,F5,IF(E14>N14,E14-N14,0)) -> 0 | P14: =IF((Payment1+Proc1*CredSumm+Proc3*CredSumm*1.1+IF(B14=Credit_Period,L14+K14,0)+N14+O14)<>0,C14,0) -> 41394 | Q14: =IF(E14>=J14+F5,E14-(J14+F5),0) -> 0
A15: =IF(B15=Credit_Period,L15,0) -> 0 | B15: 2 | C15: =IF(B15<=GiveDate,DATE(YEAR(C14),MONTH(C14)+2,1)-1,"") -> 2013-05-31 | F15: =K14 -> 2000000 | G15: =L14 -> 3424.66 | H15: =IF(F15=0,0,IF(E15>=K14+L14+ROUND(DAY(IF(D15="",C15,D15))*K14*I15/(DATE(YEAR(C15)+1,1,1)-DATE(YEAR(C15),1,1)),2),DAY(IF(D15="",C15,D15)),DAY(C15))) -> 31 | I15: =IF(F15=0,0,I14) -> 0.125 | J15: =IF(E15>=K14+L14+ROUND(DAY(IF(D15="",C15,D15))*K14*I15/(DATE(YEAR(C15)+1,1,1)-DATE(YEAR(C15),1,1)),2),ROUND(DAY(IF(D15="",C15,D15))*K14*I15/(DATE(YEAR(C15)+1,1,1)-DATE(YEAR(C15),1,1)),2),ROUND((K14)*DAY(C15)*I15/(DATE(YEAR(C15)+1,1,1)-DATE(YEAR(C15),1,1)),2)) -> 21232.88 | K15: =(K14-O15) -> 2000000 | L15: =L14+J15-N15 -> 24657.54 | M15: =(Payment2+Proc2*(F15+G15)+Proc4*1.1*(F15+G15))*IF((B15-1)/12=ROUND((B15-1)/12,0),1,0)+IF(B15=Credit_Period,L15+K15,0)+N15+O15 -> 0 | N15: =IF(E15>=L14+J15,L14+J15,E15) -> 0 | O15: =IF(IF(E15>=N15,E15-N15,0)>K14,K14,IF(E15>N15,E15-N15,0)) -> 0 | P15: =IF((Payment2+Proc2*(F15+G15)+Proc4*1.1*(F15+G15))*IF((B15-1)/12=ROUND((B15-1)/12,0),1,0)+IF(B15=Credit_Period,L15+K15,0)+N15+O15<>0,C15,0) -> 0 | Q15: =IF(E15>=J15+K14+L14,E15-(J15+K14+L14),0) -> 0
A16: =IF(B16=Credit_Period,L16,0) -> 0 | B16: 3 | C16: =IF(B16<=GiveDate,DATE(YEAR(C15),MONTH(C15)+2,1)-1,"") -> 2013-06-30 | F16: =K15 -> 2000000 | G16: =L15 -> 24657.54 | H16: =IF(F16=0,0,IF(E16>=K15+L15+ROUND(DAY(IF(D16="",C16,D16))*K15*I16/(DATE(YEAR(C16)+1,1,1)-DATE(YEAR(C16),1,1)),2),DAY(IF(D16="",C16,D16)),DAY(C16))) -> 30 | I16: =IF(F16=0,0,I15) -> 0.125 | J16: =IF(E16>=K15+L15+ROUND(DAY(IF(D16="",C16,D16))*K15*I16/(DATE(YEAR(C16)+1,1,1)-DATE(YEAR(C16),1,1)),2),ROUND(DAY(IF(D16="",C16,D16))*K15*I16/(DATE(YEAR(C16)+1,1,1)-DATE(YEAR(C16),1,1)),2),ROUND((K15)*DAY(C16)*I16/(DATE(YEAR(C16)+1,1,1)-DATE(YEAR(C16),1,1)),2)) -> 20547.95 | K16: =(K15-O16) -> 2000000 | L16: =L15+J16-N16 -> 45205.49 | M16: =(Payment2+Proc2*(F16+G16)+Proc4*1.1*(F16+G16))*IF((B16-1)/12=ROUND((B16-1)/12,0),1,0)+IF(B16=Credit_Period,L16+K16,0)+N16+O16 -> 0 | N16: =IF(E16>=L15+J16,L15+J16,E16) -> 0 | O16: =IF(IF(E16>=N16,E16-N16,0)>K15,K15,IF(E16>N16,E16-N16,0)) -> 0 | P16: =IF((Payment2+Proc2*(F16+G16)+Proc4*1.1*(F16+G16))*IF((B16-1)/12=ROUND((B16-1)/12,0),1,0)+IF(B16=Credit_Period,L16+K16,0)+N16+O16<>0,C16,0) -> 0 | Q16: =IF(E16>=J16+K15+L15,E16-(J16+K15+L15),0) -> 0
A17: =IF(B17=Credit_Period,L17,0) -> 0 | B17: 4 | C17: =IF(B17<=GiveDate,DATE(YEAR(C16),MONTH(C16)+2,1)-1,"") -> 2013-07-31 | F17: =K16 -> 2000000 | G17: =L16 -> 45205.49 | H17: =IF(F17=0,0,IF(E17>=K16+L16+ROUND(DAY(IF(D17="",C17,D17))*K16*I17/(DATE(YEAR(C17)+1,1,1)-DATE(YEAR(C17),1,1)),2),DAY(IF(D17="",C17,D17)),DAY(C17))) -> 31 | I17: =IF(F17=0,0,I16) -> 0.125 | J17: =IF(E17>=K16+L16+ROUND(DAY(IF(D17="",C17,D17))*K16*I17/(DATE(YEAR(C17)+1,1,1)-DATE(YEAR(C17),1,1)),2),ROUND(DAY(IF(D17="",C17,D17))*K16*I17/(DATE(YEAR(C17)+1,1,1)-DATE(YEAR(C17),1,1)),2),ROUND((K16)*DAY(C17)*I17/(DATE(YEAR(C17)+1,1,1)-DATE(YEAR(C17),1,1)),2)) -> 21232.88 | K17: =(K16-O17) -> 2000000 | L17: =L16+J17-N17 -> 66438.37 | M17: =(Payment2+Proc2*(F17+G17)+Proc4*1.1*(F17+G17))*IF((B17-1)/12=ROUND((B17-1)/12,0),1,0)+IF(B17=Credit_Period,L17+K17,0)+N17+O17 -> 0 | N17: =IF(E17>=L16+J17,L16+J17,E17) -> 0 | O17: =IF(IF(E17>=N17,E17-N17,0)>K16,K16,IF(E17>N17,E17-N17,0)) -> 0 | P17: =IF((Payment2+Proc2*(F17+G17)+Proc4*1.1*(F17+G17))*IF((B17-1)/12=ROUND((B17-1)/12,0),1,0)+IF(B17=Credit_Period,L17+K17,0)+N17+O17<>0,C17,0) -> 0 | Q17: =IF(E17>=J17+K16+L16,E17-(J17+K16+L16),0) -> 0
A18: =IF(B18=Credit_Period,L18,0) -> 0 | B18: 5 | C18: =IF(B18<=GiveDate,DATE(YEAR(C17),MONTH(C17)+2,1)-1,"") -> 2013-08-31 | F18: =K17 -> 2000000 | G18: =L17 -> 66438.37 | H18: =IF(F18=0,0,IF(E18>=K17+L17+ROUND(DAY(IF(D18="",C18,D18))*K17*I18/(DATE(YEAR(C18)+1,1,1)-DATE(YEAR(C18),1,1)),2),DAY(IF(D18="",C18,D18)),DAY(C18))) -> 31 | I18: =IF(F18=0,0,I17) -> 0.125 | J18: =IF(E18>=K17+L17+ROUND(DAY(IF(D18="",C18,D18))*K17*I18/(DATE(YEAR(C18)+1,1,1)-DATE(YEAR(C18),1,1)),2),ROUND(DAY(IF(D18="",C18,D18))*K17*I18/(DATE(YEAR(C18)+1,1,1)-DATE(YEAR(C18),1,1)),2),ROUND((K17)*DAY(C18)*I18/(DATE(YEAR(C18)+1,1,1)-DATE(YEAR(C18),1,1)),2)) -> 21232.88 | K18: =(K17-O18) -> 2000000 | L18: =L17+J18-N18 -> 87671.25 | M18: =(Payment2+Proc2*(F18+G18)+Proc4*1.1*(F18+G18))*IF((B18-1)/12=ROUND((B18-1)/12,0),1,0)+IF(B18=Credit_Period,L18+K18,0)+N18+O18 -> 0 | N18: =IF(E18>=L17+J18,L17+J18,E18) -> 0 | O18: =IF(IF(E18>=N18,E18-N18,0)>K17,K17,IF(E18>N18,E18-N18,0)) -> 0 | P18: =IF((Payment2+Proc2*(F18+G18)+Proc4*1.1*(F18+G18))*IF((B18-1)/12=ROUND((B18-1)/12,0),1,0)+IF(B18=Credit_Period,L18+K18,0)+N18+O18<>0,C18,0) -> 0 | Q18: =IF(E18>=J18+K17+L17,E18-(J18+K17+L17),0) -> 0
A19: =IF(B19=Credit_Period,L19,0) -> 0 | B19: 6 | C19: =IF(B19<=GiveDate,DATE(YEAR(C18),MONTH(C18)+2,1)-1,"") -> 2013-09-30 | F19: =K18 -> 2000000 | G19: =L18 -> 87671.25 | H19: =IF(F19=0,0,IF(E19>=K18+L18+ROUND(DAY(IF(D19="",C19,D19))*K18*I19/(DATE(YEAR(C19)+1,1,1)-DATE(YEAR(C19),1,1)),2),DAY(IF(D19="",C19,D19)),DAY(C19))) -> 30 | I19: =IF(F19=0,0,I18) -> 0.125 | J19: =IF(E19>=K18+L18+ROUND(DAY(IF(D19="",C19,D19))*K18*I19/(DATE(YEAR(C19)+1,1,1)-DATE(YEAR(C19),1,1)),2),ROUND(DAY(IF(D19="",C19,D19))*K18*I19/(DATE(YEAR(C19)+1,1,1)-DATE(YEAR(C19),1,1)),2),ROUND((K18)*DAY(C19)*I19/(DATE(YEAR(C19)+1,1,1)-DATE(YEAR(C19),1,1)),2)) -> 20547.95 | K19: =(K18-O19) -> 2000000 | L19: =L18+J19-N19 -> 108219.2 | M19: =(Payment2+Proc2*(F19+G19)+Proc4*1.1*(F19+G19))*IF((B19-1)/12=ROUND((B19-1)/12,0),1,0)+IF(B19=Credit_Period,L19+K19,0)+N19+O19 -> 0 | N19: =IF(E19>=L18+J19,L18+J19,E19) -> 0 | O19: =IF(IF(E19>=N19,E19-N19,0)>K18,K18,IF(E19>N19,E19-N19,0)) -> 0 | P19: =IF((Payment2+Proc2*(F19+G19)+Proc4*1.1*(F19+G19))*IF((B19-1)/12=ROUND((B19-1)/12,0),1,0)+IF(B19=Credit_Period,L19+K19,0)+N19+O19<>0,C19,0) -> 0 | Q19: =IF(E19>=J19+K18+L18,E19-(J19+K18+L18),0) -> 0
A20: =IF(B20=Credit_Period,L20,0) -> 0 | B20: 7 | C20: =IF(B20<=GiveDate,DATE(YEAR(C19),MONTH(C19)+2,1)-1,"") -> 2013-10-31 | F20: =K19 -> 2000000 | G20: =L19 -> 108219.2 | H20: =IF(F20=0,0,IF(E20>=K19+L19+ROUND(DAY(IF(D20="",C20,D20))*K19*I20/(DATE(YEAR(C20)+1,1,1)-DATE(YEAR(C20),1,1)),2),DAY(IF(D20="",C20,D20)),DAY(C20))) -> 31 | I20: =IF(F20=0,0,I19) -> 0.125 | J20: =IF(E20>=K19+L19+ROUND(DAY(IF(D20="",C20,D20))*K19*I20/(DATE(YEAR(C20)+1,1,1)-DATE(YEAR(C20),1,1)),2),ROUND(DAY(IF(D20="",C20,D20))*K19*I20/(DATE(YEAR(C20)+1,1,1)-DATE(YEAR(C20),1,1)),2),ROUND((K19)*DAY(C20)*I20/(DATE(YEAR(C20)+1,1,1)-DATE(YEAR(C20),1,1)),2)) -> 21232.88 | K20: =(K19-O20) -> 2000000 | L20: =L19+J20-N20 -> 129452.08 | M20: =(Payment2+Proc2*(F20+G20)+Proc4*1.1*(F20+G20))*IF((B20-1)/12=ROUND((B20-1)/12,0),1,0)+IF(B20=Credit_Period,L20+K20,0)+N20+O20 -> 0 | N20: =IF(E20>=L19+J20,L19+J20,E20) -> 0 | O20: =IF(IF(E20>=N20,E20-N20,0)>K19,K19,IF(E20>N20,E20-N20,0)) -> 0 | P20: =IF((Payment2+Proc2*(F20+G20)+Proc4*1.1*(F20+G20))*IF((B20-1)/12=ROUND((B20-1)/12,0),1,0)+IF(B20=Credit_Period,L20+K20,0)+N20+O20<>0,C20,0) -> 0 | Q20: =IF(E20>=J20+K19+L19,E20-(J20+K19+L19),0) -> 0
A21: =IF(B21=Credit_Period,L21,0) -> 0 | B21: 8 | C21: =IF(B21<=GiveDate,DATE(YEAR(C20),MONTH(C20)+2,1)-1,"") -> 2013-11-30 | F21: =K20 -> 2000000 | G21: =L20 -> 129452.08 | H21: =IF(F21=0,0,IF(E21>=K20+L20+ROUND(DAY(IF(D21="",C21,D21))*K20*I21/(DATE(YEAR(C21)+1,1,1)-DATE(YEAR(C21),1,1)),2),DAY(IF(D21="",C21,D21)),DAY(C21))) -> 30 | I21: =IF(F21=0,0,I20) -> 0.125 | J21: =IF(E21>=K20+L20+ROUND(DAY(IF(D21="",C21,D21))*K20*I21/(DATE(YEAR(C21)+1,1,1)-DATE(YEAR(C21),1,1)),2),ROUND(DAY(IF(D21="",C21,D21))*K20*I21/(DATE(YEAR(C21)+1,1,1)-DATE(YEAR(C21),1,1)),2),ROUND((K20)*DAY(C21)*I21/(DATE(YEAR(C21)+1,1,1)-DATE(YEAR(C21),1,1)),2)) -> 20547.95 | K21: =(K20-O21) -> 2000000 | L21: =L20+J21-N21 -> 150000.03 | M21: =(Payment2+Proc2*(F21+G21)+Proc4*1.1*(F21+G21))*IF((B21-1)/12=ROUND((B21-1)/12,0),1,0)+IF(B21=Credit_Period,L21+K21,0)+N21+O21 -> 0 | N21: =IF(E21>=L20+J21,L20+J21,E21) -> 0 | O21: =IF(IF(E21>=N21,E21-N21,0)>K20,K20,IF(E21>N21,E21-N21,0)) -> 0 | P21: =IF((Payment2+Proc2*(F21+G21)+Proc4*1.1*(F21+G21))*IF((B21-1)/12=ROUND((B21-1)/12,0),1,0)+IF(B21=Credit_Period,L21+K21,0)+N21+O21<>0,C21,0) -> 0 | Q21: =IF(E21>=J21+K20+L20,E21-(J21+K20+L20),0) -> 0
A22: =IF(B22=Credit_Period,L22,0) -> 0 | B22: 9 | C22: =IF(B22<=GiveDate,DATE(YEAR(C21),MONTH(C21)+2,1)-1,"") -> 2013-12-31 | F22: =K21 -> 2000000 | G22: =L21 -> 150000.03 | H22: =IF(F22=0,0,IF(E22>=K21+L21+ROUND(DAY(IF(D22="",C22,D22))*K21*I22/(DATE(YEAR(C22)+1,1,1)-DATE(YEAR(C22),1,1)),2),DAY(IF(D22="",C22,D22)),DAY(C22))) -> 31 | I22: =IF(F22=0,0,I21) -> 0.125 | J22: =IF(E22>=K21+L21+ROUND(DAY(IF(D22="",C22,D22))*K21*I22/(DATE(YEAR(C22)+1,1,1)-DATE(YEAR(C22),1,1)),2),ROUND(DAY(IF(D22="",C22,D22))*K21*I22/(DATE(YEAR(C22)+1,1,1)-DATE(YEAR(C22),1,1)),2),ROUND((K21)*DAY(C22)*I22/(DATE(YEAR(C22)+1,1,1)-DATE(YEAR(C22),1,1)),2)) -> 21232.88 | K22: =(K21-O22) -> 2000000 | L22: =L21+J22-N22 -> 171232.91 | M22: =(Payment2+Proc2*(F22+G22)+Proc4*1.1*(F22+G22))*IF((B22-1)/12=ROUND((B22-1)/12,0),1,0)+IF(B22=Credit_Period,L22+K22,0)+N22+O22 -> 0 | N22: =IF(E22>=L21+J22,L21+J22,E22) -> 0 | O22: =IF(IF(E22>=N22,E22-N22,0)>K21,K21,IF(E22>N22,E22-N22,0)) -> 0 | P22: =IF((Payment2+Proc2*(F22+G22)+Proc4*1.1*(F22+G22))*IF((B22-1)/12=ROUND((B22-1)/12,0),1,0)+IF(B22=Credit_Period,L22+K22,0)+N22+O22<>0,C22,0) -> 0 | Q22: =IF(E22>=J22+K21+L21,E22-(J22+K21+L21),0) -> 0
A23: =IF(B23=Credit_Period,L23,0) -> 0 | B23: 10 | C23: =IF(B23<=GiveDate,DATE(YEAR(C22),MONTH(C22)+2,1)-1,"") -> 2014-01-31 | F23: =K22 -> 2000000 | G23: =L22 -> 171232.91 | H23: =IF(F23=0,0,IF(E23>=K22+L22+ROUND(DAY(IF(D23="",C23,D23))*K22*I23/(DATE(YEAR(C23)+1,1,1)-DATE(YEAR(C23),1,1)),2),DAY(IF(D23="",C23,D23)),DAY(C23))) -> 31 | I23: =IF(F23=0,0,I22) -> 0.125 | J23: =IF(E23>=K22+L22+ROUND(DAY(IF(D23="",C23,D23))*K22*I23/(DATE(YEAR(C23)+1,1,1)-DATE(YEAR(C23),1,1)),2),ROUND(DAY(IF(D23="",C23,D23))*K22*I23/(DATE(YEAR(C23)+1,1,1)-DATE(YEAR(C23),1,1)),2),ROUND((K22)*DAY(C23)*I23/(DATE(YEAR(C23)+1,1,1)-DATE(YEAR(C23),1,1)),2)) -> 21232.88 | K23: =(K22-O23) -> 2000000 | L23: =L22+J23-N23 -> 192465.79 | M23: =(Payment2+Proc2*(F23+G23)+Proc4*1.1*(F23+G23))*IF((B23-1)/12=ROUND((B23-1)/12,0),1,0)+IF(B23=Credit_Period,L23+K23,0)+N23+O23 -> 0 | N23: =IF(E23>=L22+J23,L22+J23,E23) -> 0 | O23: =IF(IF(E23>=N23,E23-N23,0)>K22,K22,IF(E23>N23,E23-N23,0)) -> 0 | P23: =IF((Payment2+Proc2*(F23+G23)+Proc4*1.1*(F23+G23))*IF((B23-1)/12=ROUND((B23-1)/12,0),1,0)+IF(B23=Credit_Period,L23+K23,0)+N23+O23<>0,C23,0) -> 0 | Q23: =IF(E23>=J23+K22+L22,E23-(J23+K22+L22),0) -> 0
A24: =IF(B24=Credit_Period,L24,0) -> 0 | B24: 11 | C24: =IF(B24<=GiveDate,DATE(YEAR(C23),MONTH(C23)+2,1)-1,"") -> 2014-02-28 | F24: =K23 -> 2000000 | G24: =L23 -> 192465.79 | H24: =IF(F24=0,0,IF(E24>=K23+L23+ROUND(DAY(IF(D24="",C24,D24))*K23*I24/(DATE(YEAR(C24)+1,1,1)-DATE(YEAR(C24),1,1)),2),DAY(IF(D24="",C24,D24)),DAY(C24))) -> 28 | I24: =IF(F24=0,0,I23) -> 0.125 | J24: =IF(E24>=K23+L23+ROUND(DAY(IF(D24="",C24,D24))*K23*I24/(DATE(YEAR(C24)+1,1,1)-DATE(YEAR(C24),1,1)),2),ROUND(DAY(IF(D24="",C24,D24))*K23*I24/(DATE(YEAR(C24)+1,1,1)-DATE(YEAR(C24),1,1)),2),ROUND((K23)*DAY(C24)*I24/(DATE(YEAR(C24)+1,1,1)-DATE(YEAR(C24),1,1)),2)) -> 19178.08 | K24: =(K23-O24) -> 2000000 | L24: =L23+J24-N24 -> 211643.87 | M24: =(Payment2+Proc2*(F24+G24)+Proc4*1.1*(F24+G24))*IF((B24-1)/12=ROUND((B24-1)/12,0),1,0)+IF(B24=Credit_Period,L24+K24,0)+N24+O24 -> 0 | N24: =IF(E24>=L23+J24,L23+J24,E24) -> 0 | O24: =IF(IF(E24>=N24,E24-N24,0)>K23,K23,IF(E24>N24,E24-N24,0)) -> 0 | P24: =IF((Payment2+Proc2*(F24+G24)+Proc4*1.1*(F24+G24))*IF((B24-1)/12=ROUND((B24-1)/12,0),1,0)+IF(B24=Credit_Period,L24+K24,0)+N24+O24<>0,C24,0) -> 0 | Q24: =IF(E24>=J24+K23+L23,E24-(J24+K23+L23),0) -> 0
A25: =IF(B25=Credit_Period,L25,0) -> 232876.75 | B25: 12 | C25: =IF(B25<=GiveDate,DATE(YEAR(C24),MONTH(C24)+2,1)-1,"") -> 2014-03-31 | F25: =K24 -> 2000000 | G25: =L24 -> 211643.87 | H25: =IF(F25=0,0,IF(E25>=K24+L24+ROUND(DAY(IF(D25="",C25,D25))*K24*I25/(DATE(YEAR(C25)+1,1,1)-DATE(YEAR(C25),1,1)),2),DAY(IF(D25="",C25,D25)),DAY(C25))) -> 31 | I25: =IF(F25=0,0,I24) -> 0.125 | J25: =IF(E25>=K24+L24+ROUND(DAY(IF(D25="",C25,D25))*K24*I25/(DATE(YEAR(C25)+1,1,1)-DATE(YEAR(C25),1,1)),2),ROUND(DAY(IF(D25="",C25,D25))*K24*I25/(DATE(YEAR(C25)+1,1,1)-DATE(YEAR(C25),1,1)),2),ROUND((K24)*DAY(C25)*I25/(DATE(YEAR(C25)+1,1,1)-DATE(YEAR(C25),1,1)),2)) -> 21232.88 | K25: =(K24-O25) -> 2000000 | L25: =L24+J25-N25 -> 232876.75 | M25: =(Payment2+Proc2*(F25+G25)+Proc4*1.1*(F25+G25))*IF((B25-1)/12=ROUND((B25-1)/12,0),1,0)+IF(B25=Credit_Period,L25+K25,0)+N25+O25 -> 2232876.75 | N25: =IF(E25>=L24+J25,L24+J25,E25) -> 0 | O25: =IF(IF(E25>=N25,E25-N25,0)>K24,K24,IF(E25>N25,E25-N25,0)) -> 0 | P25: =IF((Payment2+Proc2*(F25+G25)+Proc4*1.1*(F25+G25))*IF((B25-1)/12=ROUND((B25-1)/12,0),1,0)+IF(B25=Credit_Period,L25+K25,0)+N25+O25<>0,C25,0) -> 41729 | Q25: =IF(E25>=J25+K24+L24,E25-(J25+K24+L24),0) -> 0
A26: =IF(B26=Credit_Period,L26,0) -> 0
A27: 0
A28: 0
A29: 0
A30: 0
A31: 0
A32: 0
A33: 0
A34: 0
A35: 0
A36: 0
A37: 0

Sheet Регионы (hidden)
B1: к/з min, % | C1: к/з max, % (включительно) | D1: Алтайский край | E1: Амурская область | F1: Архангельская область | G1: Астраханская область | H1: Белгородская область | I1: Брянская область | J1: Владимирская область | K1: Волгоградская область | L1: Вологодская область | M1: Воронежская область | N1: г. Владивосток | O1: г. Сочи | P1: г.Москва | Q1: г.Санкт-Петербург | R1: Еврейская автономная область | S1: Забайкальский край | T1: Ивановская область | U1: Иркутская область | V1: Кабардино-Балкарская Республика | W1: Калининградская область | X1: Калужская область | Y1: Камчатский край | Z1: Карачаево-Черкесская Республика | AA1: Кемеровская область | AB1: Кировская область | AC1: Костромская область | AD1: Краснодарский край | AE1: Красноярский край | AF1: Курганская область | AG1: Курская область | AH1: Ленинградская область | AI1: Липецкая область | AJ1: Магаданская область | AK1: Московская область | AL1: Мурманская область | AM1: Нижегородская область | AN1: Новгородская область | AO1: Новосибирская область | AP1: Омская область | AQ1: Оренбургская область | AR1: Орловская область | AS1: Пензенская область | AT1: Пермский край | AU1: Приморский край (за исключением г. Владивосток) | AV1: Псковская область | AW1: Республика Адыгея | AX1: Республика Алтай | AY1: Республика Башкортостан | AZ1: Республика Бурятия | BA1: Республика Дагестан | BB1: Республика Ингушетия | BC1: Республика Калмыкия | BD1: Республика Карелия | BE1: Республика Коми | BF1: Республика Марий Эл | BG1: Республика Мордовия | BH1: Республика Саха (Якутия) | BI1: Республика Северная Осетия - Алания | BJ1: Республика Татарстан | BK1: Республика Тыва | BL1: Республика Хакасия | BM1: Ростовская область | BN1: Рязанская область | BO1: Самарская область | BP1: Саратовская область | BQ1: Сахалинская область | BR1: Свердловская область | BS1: Смоленская область | BT1: Ставропольский край | BU1: Тамбовская область | BV1: Тверская область | BW1: Томская область | BX1: Тульская область | BY1: Тюменская область | BZ1: Удмуртская Республика | CA1: Ульяновская область | CB1: Хабаровский край | CC1: Ханты-Мансийский автономный округ - Югра | CD1: Челябинская область | CE1: Чеченская Республика | CF1: Чувашская Республика | CG1: Чукотский автономный округ | CH1: Ямало-Ненецкий автономный округ | CI1: Ярославская область
B2: 30 | C2: 50 | D2: 2.7 | E2: 4.2 | F2: 3.2 | G2: 2.4 | H2: 3.2 | I2: 2.6 | J2: 3.1 | K2: 3 | L2: 2.7 | M2: 2.8 | N2: 5 | O2: 6.1 | P2: 10 | Q2: 5.7 | R2: 2.6 | S2: 2.8 | T2: 2.7 | U2: 3.5 | V2: 2.6 | W2: 3 | X2: 4.2 | Y2: 3.2 | Z2: 1.9 | AA2: 2.9 | AB2: 2.6 | AC2: 2.8 | AD2: 3 | AE2: 3.2 | AF2: 2.6 | AG2: 2.1 | AH2: 3.9 | AI2: 2.8 | AJ2: 2.6 | AK2: 7.1 | AL2: 2.6 | AM2: 3.2 | AN2: 2.9 | AO2: 3.1 | AP2: 2.6 | AQ2: 2.8 | AR2: 2.4 | AS2: 2.7 | AT2: 3.1 | AU2: 3.1 | AV2: 2.7 | AW2: 2.1 | AX2: 2.8 | AY2: 3.5 | AZ2: 2.7 | BA2: 2.7 | BB2: 1.7 | BC2: 2.1 | BD2: 3.1 | BE2: 3.9 | BF2: 2.7 | BG2: 2.7 | BH2: 4.1 | BI2: 1.9 | BJ2: 3.5 | BK2: 3.1 | BL2: 2.9 | BM2: 3.9 | BN2: 2.9 | BO2: 3 | BP2: 2.1 | BQ2: 4.2 | BR2: 4.1 | BS2: 3 | BT2: 2.6 | BU2: 2.4 | BV2: 3.1 | BW2: 3 | BX2: 2.9 | BY2: 3.1 | BZ2: 2.8 | CA2: 2.6 | CB2: 4.1 | CC2: 5 | CD2: 2.7 | CE2: 1.8 | CF2: 2.8 | CG2: 2.6 | CH2: 3.9 | CI2: 3.1
B3: 50 | C3: 60 | D3: 2.4 | E3: 3.8 | F3: 2.9 | G3: 2.1 | H3: 2.9 | I3: 2.3 | J3: 2.8 | K3: 2.7 | L3: 2.4 | M3: 2.5 | N3: 4.5 | O3: 5.5 | P3: 9 | Q3: 5.1 | R3: 2.3 | S3: 2.5 | T3: 2.4 | U3: 3.1 | V3: 2.3 | W3: 2.7 | X3: 3.8 | Y3: 2.9 | Z3: 1.7 | AA3: 2.6 | AB3: 2.3 | AC3: 2.5 | AD3: 2.7 | AE3: 2.9 | AF3: 2.3 | AG3: 1.9 | AH3: 3.5 | AI3: 2.5 | AJ3: 2.3 | AK3: 6.4 | AL3: 2.3 | AM3: 2.9 | AN3: 2.6 | AO3: 2.8 | AP3: 2.3 | AQ3: 2.5 | AR3: 2.1 | AS3: 2.4 | AT3: 2.8 | AU3: 2.8 | AV3: 2.4 | AW3: 1.9 | AX3: 2.5 | AY3: 3.1 | AZ3: 2.4 | BA3: 2.4 | BB3: 1.5 | BC3: 1.9 | BD3: 2.8 | BE3: 3.5 | BF3: 2.4 | BG3: 2.4 | BH3: 3.7 | BI3: 1.7 | BJ3: 3.1 | BK3: 2.8 | BL3: 2.6 | BM3: 3.5 | BN3: 2.6 | BO3: 2.7 | BP3: 1.9 | BQ3: 3.8 | BR3: 3.7 | BS3: 2.7 | BT3: 2.3 | BU3: 2.1 | BV3: 2.8 | BW3: 2.7 | BX3: 2.6 | BY3: 2.8 | BZ3: 2.5 | CA3: 2.3 | CB3: 3.7 | CC3: 4.5 | CD3: 2.4 | CE3: 1.6 | CF3: 2.5 | CG3: 2.3 | CH3: 3.5 | CI3: 2.8
B4: 60 | C4: 70 | D4: 2.1 | E4: 3.4 | F4: 2.6 | G4: 1.9 | H4: 2.6 | I4: 2 | J4: 2.5 | K4: 2.4 | L4: 2.1 | M4: 2.2 | N4: 4 | O4: 4.9 | P4: 8 | Q4: 4.6 | R4: 2 | S4: 2.2 | T4: 2.1 | U4: 2.8 | V4: 2 | W4: 2.4 | X4: 3.4 | Y4: 2.6 | Z4: 1.5 | AA4: 2.3 | AB4: 2 | AC4: 2.2 | AD4: 2.4 | AE4: 2.6 | AF4: 2 | AG4: 1.7 | AH4: 3.1 | AI4: 2.2 | AJ4: 2 | AK4: 5.8 | AL4: 2 | AM4: 2.6 | AN4: 2.3 | AO4: 2.5 | AP4: 2 | AQ4: 2.2 | AR4: 1.9 | AS4: 2.1 | AT4: 2.5 | AU4: 2.5 | AV4: 2.1 | AW4: 1.7 | AX4: 2.2 | AY4: 2.8 | AZ4: 2.1 | BA4: 2.1 | BB4: 1.3 | BC4: 1.7 | BD4: 2.5 | BE4: 3.1 | BF4: 2.1 | BG4: 2.1 | BH4: 3.3 | BI4: 1.5 | BJ4: 2.8 | BK4: 2.5 | BL4: 2.3 | BM4: 3.1 | BN4: 2.3 | BO4: 2.4 | BP4: 1.7 | BQ4: 3.4 | BR4: 3.3 | BS4: 2.4 | BT4: 2 | BU4: 1.9 | BV4: 2.5 | BW4: 2.4 | BX4: 2.3 | BY4: 2.5 | BZ4: 2.2 | CA4: 2 | CB4: 3.3 | CC4: 4 | CD4: 2.1 | CE4: 1.4 | CF4: 2.2 | CG4: 2 | CH4: 3.1 | CI4: 2.5
B9: к/з min, % | C9: к/з max, % (включительно) | D9: г.Москва | E9: Все регионы (за исключением г. Москвы)
B10: 30 | C10: 50 | D10: 10 | E10: 7.1
B11: 50 | C11: 60 | D11: 9 | E11: 6.4
B12: 60 | C12: 70 | D12: 8 | E12: 5.8
